Cogmind - Beta 16 @@@ ROGUE MODE // 2025.11.10 @ 16:16:59 Player: Darcyisverycute Result: Destroyed by S-10 Pest with Light Assault Rifle Performance ------------- Evolutions (0) 0 Regions Visited (2) 400 Robots Destroyed (18) 90 Value Destroyed (295) 295 Prototype IDs (2) 40 Alien Tech Used (0) 0 Bonus (0) 0 TOTAL SCORE: 825 Bonus ------- None Cogmind --------- Core Integrity 0/250 Matter 300/300 Energy 100/100 System Corruption 4% Temperature Cool (0) Movement Core (100) Ox1 Location -10/Mines Parts ------- > --- POWER (1) -------- (None) > --- PROPULSION (2) --- (None) > --- UTILITY (2) ------ Improved Terrain Scanner Light Armor Plating > --- WEAPON (2) ------- (None) > --- INVENTORY (5) ---- Medium Storage Unit Large Storage Unit Structural Scanner Visual Processing Unit Seismic Detector Peak State ------------ > --- POWER ------------ Ion Engine > --- PROPULSION ------- Light Treads Light Treads > --- UTILITY ---------- Seismic Detector Light Armor Plating > --- WEAPON ----------- EM Pulse Gun Small Laser > --- INVENTORY -------- Compact Wheel Small Storage Unit Improved Terrain Scanner Small Laser Mining Laser [Rating: 7] Favorites ----------- Power Ion Engine Engine Ion Engine Propulsion Light Treads Treads Light Treads Wheel Compact Wheel Utility Seismic Detector Device Seismic Detector Storage Small Storage Unit Protection Light Armor Plating Weapon Small Laser Energy Gun Small Laser Special Weapon Mining Laser Build | -11 -10 -10 ------- Run | Yrd Mat Min Slots Evolved . | . . . Power . | . . . Propulsion . | . . . Utility . | . . . Weapon . | . . . Parts Attached 16 | 7 7 2 Power 2 | 1 1 . Engine 2 | 1 1 . Core . | . . . Reactor . | . . . Propulsion 3 | 3 . . Treads 2 | 2 . . Leg . | . . . Wheel 1 | 1 . . Hover . | . . . Flight . | . . . Utility 7 | 1 4 2 Device 3 | 1 1 1 Storage 2 | . 2 . Processor . | . . . Hackware . | . . . Protection 2 | . 1 1 Artifact . | . . . Weapon 4 | 2 2 . Energy Gun 3 | 2 1 . Energy Cannon . | . . . Ballistic Gun . | . . . Ballistic Cannon . | . . . Launcher . | . . . Special Weapon 1 | . 1 . Impact Weapon . | . . . Slashing Weapon . | . . . Piercing Weapon . | . . . Special Melee Weapon . | . . . Unidentified Prototypes . | . . . Parts Lost 6 | . 2 4 Power . | . . . Propulsion 2 | . . 2 Utility 1 | . 1 . Weapon 3 | . 1 2 Highest Loss Streak 3 | . 1 3 To Critical Strikes . | . . . Average Backups 5 | 4 5 4 Power . | . . . Propulsion . | 1 . . Utility 3 | 1 3 4 Weapon 1 | 1 1 . Tool/Special . | . . . Unused Backups 5 | 1 1 3 Power 1 | 1 . . Propulsion 1 | . 1 . Utility 3 | . . 3 Weapon . | . . . Tool/Special . | . . . Average Slot Usage (%) 85 | . 96 43 Engine 11 | . 14 3 Treads 22 | . 28 1 Device 13 | . 11 20 Storage 8 | . 10 2 Protection 3 | . 3 1 Energy Gun 22 | . 26 4 Special Weapon 3 | . 1 10 Peak Build Rating 7 | 6 7 7 Average Rating 6 | 5 6 4 On Entrance 4 | . 6 7 Avg Prop Armor Cover (%) 3 | 3 . . Naked Turns 1 | . . 1 Heaviest Build 27 | 8 27 24 Greatest Support 40 | 40 40 3 Greatest Overweight (x) 7 | . . 7 Average Overweight (x) . | . . . Largest Inventory Capacity 15 | 5 15 15 Average Capacity 8 | 5 9 6 Most Carried 7 | 5 7 7 Average Carried 5 | 4 5 4 Final Capacity 15 | 5 15 5 Final Carried 7 | 5 7 5 Class Distribution -------------------- 100% | Mutant Dominant Class ---------------- Mutant | -10/Materials Mutant | -10/Mines Resources | -11 -10 -10 ----------- Run | Yrd Mat Min Matter Collected 475 | 237 183 55 Remotely . | . . . Salvage Created 502 | 132 329 41 Parts 30 | 12 18 . Haulers Intercepted 1 | . 1 . Recyclers Shooed 3 | 2 1 . Parts Field Recycled . | . . . Retrieved Matter . | . . . Parts Self-Destructed . | . . . Prevented . | . . . Parts Restored . | . . . Kills | -11 -10 -10 ------- Run | Yrd Mat Min Combat Hostiles Destroyed 11 | . 10 1 Guns 11 | . 10 1 Classes Destroyed 6 | 2 4 . Tunneler 4 | 4 . . Hauler 1 | . 1 . Recycler 1 | 1 . . Watcher 1 | . 1 . Swarmer 6 | . 6 . Grunt 5 | . 4 1 Best Kill Streak 5 | 2 5 1 Combat Bots Only 5 | . 5 1 Max Kills in Single Turn 1 | 1 1 1 Gunslinging . | . . . Exploded . | . . . Melee . | . . . Uniques/NPCs Destroyed . | . . . Combat | -11 -10 -10 -------- Run | Yrd Mat Min Hostile Shots Fired 134 | . 92 42 Missed 34 | . 22 12 Hits 100 | . 70 30 Projectile 100 | . 70 30 Damage Taken 1005 | . 663 342 Core 251 | . 120 131 Absorbed by Shields . | . . . Core Remaining (%) 100 | 100 . . Volleys Fired 80 | 13 50 17 Largest 2 | 2 2 2 Hottest 100 | 80 100 100 Shots Fired 136 | 26 88 22 Gun 130 | 26 85 19 Cannon . | . . . Launcher . | . . . Special 6 | . 3 3 Kinetic . | . . . Thermal 117 | 26 69 22 Explosive . | . . . Electromagnetic 19 | . 19 . Robot Hit Streak 10 | 4 10 3 Robot Miss Streak 7 | 2 7 1 Penetration Max . | . . . Secondary Targets 2 | . 1 1 Max Gunslinging Chain 1 | . 1 1 Shots Hit Robots 72 | 14 45 13 Core Hits 30 | 6 19 5 Critical Kills . | . . . Critical Parts Destroyed . | . . . Critical Strikes . | . . . Melee Attacks . | . . . Impact . | . . . Slashing . | . . . Piercing . | . . . Sneak Attacks . | . . . Combat Hostiles . | . . . Follow-up Attacks . | . . . Damage Inflicted 829 | 147 529 153 Guns 819 | 147 529 143 Cannons . | . . . Explosions . | . . . Melee . | . . . Ramming 10 | . . 10 Kinetic . | . . . Thermal 721 | 147 431 143 Explosive . | . . . Electromagnetic 98 | . 98 . Impact . | . . . Slashing . | . . . Piercing . | . . . Highest Corruption 4 | . . 4 Average Corruption 4 | . . 4 Corruption Purged . | . . . Corruption Blocked . | . . . Overload Shots . | . . . Overflow Damage . | . . . Projectiles . | . . . Explosions . | . . . Melee . | . . . Knockbacks . | . . . Impact . | . . . Kinetic . | . . . Secondary . | . . . Self-Inflicted Damage 4 | . . 4 Shots . | . . . Rammed 8 | . . 8 Targets Rammed 8 | . . 8 Kicked . | . . . Crushed . | . . . Highest Temperature 243 | 90 243 213 Average Temperature 81 | 30 80 138 Received Heat Transfer 273 | . 150 123 Siege Activations . | . . . Martial Activations . | . . . Shielding Activations . | . . . Robots Disrupted . | . . . Combat Hostiles . | . . . Robots Corrupted . | . . . Combat Hostiles . | . . . Parts Fried . | . . . Impact Corruptions . | . . . Robots Melted . | . . . Combat Hostiles . | . . . Parts Melted 4 | . 4 . Heat Transferred 1650 | 350 975 325 Parts Sabotaged . | . . . Parts Stolen . | . . . Parts Stripped . | . . . Power Chain Reactions . | . . . Alert | -11 -10 -10 ------- Run | Yrd Mat Min Maximum Alert Level . | . . . Low Security (%) 100 | 100 100 100 Level 1 . | . . . Level 2 . | . . . Level 3 . | . . . Level 4 . | . . . Level 5 . | . . . High Security . | . . . Max Security . | . . . Peak Influence 101 | 5 101 27 Initial 17 | . . 17 Average 19 | . 29 2 Influence Increases 370 | 25 292 53 Destroy 0b10 Robot/C 220 | . 200 20 Destroy 0b10 Robot/NC 35 | 25 10 . Destroy Leader 44 | . 44 . Successful Hack 5 | . 5 . Destroy Structure 6 | . 3 3 Lose Combat Pursuer 60 | . 30 30 Influence Decreases 355 | 25 247 83 Entered New Map 28 | . . 28 Time Decay 277 | 25 227 25 Lost Part 50 | . 20 30 Squads Dispatched 4 | . 4 . Investigation . | . . . Extermination . | . . . Reinforcement 4 | . 4 . Assault . | . . . Garrison . | . . . Intercept . | . . . Searches Triggered . | . . . Construction Impeded . | . . . Haulers Reinforced . | . . . Active Scanning Responses . | . . . Cargo Convoy Interrupts . | . . . Stealth | -11 -10 -10 --------- Run | Yrd Mat Min Distress Signals 4 | . 4 . Communications Jammed . | . . . Distress Signals . | . . . Times Spotted 29 | . 23 6 Peak Tracking Total 6 | . 6 3 Tactical Retreats 6 | . 4 2 ECM-based Alert Blocks 2 | . 2 . Traps | -11 -10 -10 ------- Run | Yrd Mat Min Traps Triggered . | . . . Indirectly . | . . . Trap Hack Attempts . | . . . Triggered . | . . . Disarmed . | . . . Reprogrammed . | . . . Reused . | . . . Traps Extracted . | . . . Installed . | . . . Triggered . | . . . Machines | -11 -10 -10 ---------- Run | Yrd Mat Min Machines Disabled . | . . . Max in Single Turn . | . . . Machines Repaired . | . . . Machines Dismantled . | . . . Machines Sabotaged . | . . . Overloaded Fab Kills . | . . . Hacking | -11 -10 -10 --------- Run | Yrd Mat Min Machines Accessed 4 | . 4 . Terminals 4 | . 4 . Fabricators . | . . . Repair Stations . | . . . Recycling Units . | . . . Scanalyzers . | . . . Garrison Access . | . . . Total Hacks 10 | . 10 . Successful 7 | . 7 . Failed 3 | . 3 . Catastrophic 1 | . 1 . Database Lockouts . | . . . Manual . | . . . Terminals 10 | . 10 . Fabricators . | . . . Repair Stations . | . . . Recycling Units . | . . . Scanalyzers . | . . . Garrison Access . | . . . Terminal Hacks 7 | . 7 . Prototype ID Bank 1 | . 1 . Alert Level 1 | . 1 . Locate Traps 1 | . 1 . Maintenance Status 1 | . 1 . Security Status 1 | . 1 . Hauler Manifests 1 | . 1 . Zone Layout 1 | . 1 . Fabricator Hacks . | . . . Repair Station Hacks . | . . . Recycling Unit Hacks . | . . . Scanalyzer . | . . . Garrison Access Hacks . | . . . Unauthorized Hacks . | . . . Terminals . | . . . Fabricators . | . . . Repair Stations . | . . . Recycling Units . | . . . Scanalyzers . | . . . Garrison Access . | . . . Data Cores Recovered . | . . . Used . | . . . Hacking Detections 3 | . 3 . Full Trace Events . | . . . Feedback Events . | . . . Feedback Blocked . | . . . Robot Schematics Acquired . | . . . Robots Built . | . . . Authchips . | . . . Time . | . . . Total Robot Build Rating . | . . . Part Schematics Acquired . | . . . Parts Built . | . . . Authchips . | . . . Time . | . . . Total Part Build Rating . | . . . Part Studies Acquired . | . . . Parts Repaired . | . . . Time . | . . . Parts Recycled . | . . . Recycled Matter . | . . . Retrieved Matter . | . . . Retrieved Components . | . . . Parts Scanalyzed . | . . . Part Schematics Acquired . | . . . Parts Damaged . | . . . Bothacking | -11 -10 -10 ------------ Run | Yrd Mat Min Used RIF Installer . | . . . Robots Hacked . | . . . Non-combat . | . . . Combat . | . . . Robot Hacks Applied . | . . . Relay Couplers Released . | . . . Fabnet Peak Effective % . | . . . Robots Rewired . | . . . Allies Hacked . | . . . Hacks Repelled . | . . . Allies | -11 -10 -10 -------- Run | Yrd Mat Min Total Allies . | . . . Largest Group . | . . . Highest-Rated Group . | . . . Highest-Rated Ally . | . . . Total Orders . | . . . Ally Attacks . | . . . Total Damage . | . . . Kills . | . . . Allies Corrupted . | . . . Allies Melted . | . . . Intel | -11 -10 -10 ------- Run | Yrd Mat Min Active Infowar (turns) 953 | 122 669 162 Terrain 162 | . . 162 Seismic 838 | 122 562 154 ECM 107 | . 107 . Robot Analysis Total . | . . . Derelict Logs Recovered . | . . . Drone Launches . | . . . Drone Recoveries . | . . . Exploration | -11 -10 -10 ------------- Run | Yrd Mat Min Turns Passed 1294 | 234 837 223 Spaces Moved 581 | 111 342 128 Core 129 | 1 . 128 Treads 447 | 105 342 . Legs . | . . . Wheels 5 | 5 . . Hover . | . . . Flight . | . . . Fastest Speed 50 | 50 160 50 Average Speed 137 | 156 160 59 Slowest Speed 400 | 160 160 400 Overloaded Moves . | . . . Propulsion Burnouts . | . . . Robots Hopped . | . . . Potential Cave-ins . | . . . Cave-ins Triggered . | . . . Exploration Rate (%) 31 | 10 59 24 Regions Visited 2 Branch Regions 1 Pre-discovered Areas . | . . . Known Exits Taken . | . . . Unknown Exits Taken 2 | 1 1 . Scrap Searched 1 | . . 1 Spaces Dug 6 | . 3 3 Terrain Destroyed 6 | . 3 3 Melee . | . . . Projectile 6 | . 3 3 AOE . | . . . Terrain Rammed . | . . . Walls Destroyed . | . . . Machines Disabled . | . . . Actions | -11 -10 -10 --------- Run | Yrd Mat Min Total 924 | 144 533 247 Wait 200 | 3 112 85 Move 579 | 110 341 128 Hop . | . . . Pick Up 14 | 7 5 2 Fast Attach 9 | 7 1 1 Attach 7 | 1 4 2 Detach 2 | . 2 . Swap 15 | . 14 1 Drop 10 | 3 4 3 Fire 80 | 13 50 17 Melee . | . . . Ram 8 | . . 8 Kick . | . . . Crush . | . . . Escape Stasis . | . . . Rewire . | . . . Trap . | . . . Miscellaneous . | . . . Route ------- -11/Scrapyard -10/Materials (discovered 3 exits: [*Mat x2] / [*Min]) -10/Mines (discovered 2 exits: [*Exi] / [*Sub]) History --------- Turn | Location | Event 38 | -11/Scrapyard | Discovered new exit (range 15) 235 | -11/Scrapyard | Entered Materials 322 | -10/Materials | Build established: Mutant 629 | -10/Materials | Discovered new exit (range 8) 710 | -10/Materials | Discovered new exit (range 6) 779 | -10/Materials | Discovered new exit (range 16) 1072 | -10/Materials | Entered Mines 1075 | -10/Mines | Core integrity fell below 50% 1101 | -10/Mines | Core integrity fell below 20% 1115 | -10/Mines | Lost 3 parts (2n1w) 1190 | -10/Mines | Deemed a non-threat by the Exiles lab entrance 1191 | -10/Mines | Discovered new exit (range 5) 1227 | -10/Mines | Discovered new exit (range 10) 1295 | -10/Mines | Destroyed by S-10 Pest with Light Assault Rifle Last Messages --------------- 01191_ EXIT=FOUND 01227_ Searching scrap... 01227_ Found Hcp. Battery. 01227_ Found Heat Sink. 01227_ Found Seismic Detector. 01227_ Found Lgt. Armor Plating. 01227_ Found 41 Matter. 01228_ Acquired 14 matter. 01228_ Acquired Lgt. Armor Plating. 01269_ Slammed into S-10 Pest. 01269_ Destabilizing: System interference. 01269_ Mining Laser temporarily disabled. 01270_ Slammed into S-10 Pest. 01274_ Destabilizing: System interference. 01274_ Imp. Terrain Scanner temporarily disabled. 01276_ Slammed into S-10 Pest. 01290_ Slammed into U-05 Engineer. 01290_ Mining Laser destroyed. 01290_ System corrupted by crushing effect (+4). Map ----- +----------------------------------------------------+ | ???#?#???###?#???### ####### #????????????? | | ???#?#???##??###### #????????????????????? | | ????#???#??### ## ##???????????????????? | | ??????????## #???????????????????? | | ???????#### #???????????????????? | | ????????## #????#??????????????? | | ????##### ##???????????????????? | | ???## ## ##????????????????????? | | ??## #### ###?????????????????????? | | ?## ###?## #???????????????????????? | | ?# ##?#??# ##??????????????????????? | | ?# ##?????# ?????????????????????? | | ?## #??????# ?????????????????????? | | ??## ##?????#######????????????????????? | | ???# ##### ##?????????????????????? | | ??## """" #?????????????????????? | | ??# """"%% #?????????????????????? | | ??# """" % ##?????????????????????? | | #?# % #??????????????????????? | | ??## ########### #??????????????????????? | | ???## #????????????#??????????????????????? | | ????# #???????????????????????????????????? | | ????# #######?????????????????????????????? | | ????# #?????????????????????????????? | | ????######## ##########????????????????????? | | ???????????# ss% @ #????????????????????? | | ???????????######### #????????????????????? | | ????#??????????????? #????????????????????? | | ???????????????????? #????????????????????? | | ????????????????????? #????????????????????? | | ??????????????????????#????????????????????? | | ???????????????????????????????????????????? | | ???????????????????????????????????????????? | | ???????????????????????????????????????????? | | ???????????????????????????????????????????? | | ???????????????????????????????????????????? | | ???????????????????????????????????????????? | | ???????????????????????????????????????????? | | ???????????????????????????????????????????? | | ???????????????????????????????????????????? | | ???????????????????????????????????????????? | | ???????????????????????????????????????????? | | ???????????????????????????????????????????? | | ???????????????????????????????????????????? | | ???????????????????????????????????????????? | | ???????????????????????????????????????????? | | ???????????????????????????????????????????? | | ???????????????????????????????????????????? | | ???????????????????????????????????????????? | | ???????????????????????????????????????????? | +----------------------------------------------------+ Best States ------------- Heat Dissipation 25 Energy Generation 10 Energy Capacity 250 Matter Stores 300 Matter Capacity 300 Sight Range 16 Terrain Scan Range 16 Terrain Scan Density 10 ECM Strength 1 Armor Coverage 150 Evasion (%) 50 Recoil Reduction 2 Item Schematics ----------------- None Robot Schematics ------------------ None Fabricated ------------ Nothing Repaired ---------- Nothing Studied --------- None Alien Tech Used ----------------- None Achievements -------------- None Challenges ------------ None Game ------ Seed TechAbsorptionMiniperforator Manual? 0 Play Time 00:23:59 Cumulative 399.1 hours Start 2025.11.09 @ 09:31:45 End 2025.11.10 @ 16:16:59 Sessions 6 Manual Loads 0 Difficulty Rogue Special Mode None Game No. 181 Rogue 173 Adventurer 8 Explorer 0 Win Type - Total 27 Types 13/1/4/3/0/1/1/1/2/1 Lore% 90 Gallery% 90 Achievement% 76 Wizard Run 0 Options --------- Layout 2 ASCII 0 Keyboard 1 Movement Numpad Keybinds 1 Fullscreen 2 Font 24/Smallcaps Map View 50x44 Zoom Use 0% Tactical HUD 1 Map Filters NONE Filters NONE Steam 1 RUN: ad478dd8-b160-41b7-ae18-5b8c69d53888